bitfinex-derivatives/quotes_SOLF0:USTF0_20240924
["timestamp","ask_amount","ask_price","bid_price","bid_amount"]
[1727197668473,3.4013,147.01,146.96,3.4023]
[1727197669284,3.4013,147.01,146.97,3.4021]
[1727197669479,1.4306,147.02,146.95,14.71]
[1727197669680,1.4306,147.02,146.97,14.71]
[1727197671088,4.8317,147.02,146.98,3.4018]
[1727197671279,14.71,147.11,147.01,14.71]
[1727197671584,3.75173212,147.1,147.01,14.71]
[1727197671783,4.39875193,147.09,147.01,14.71]
[1727197671987,3.36281981,147.09,147.01,14.71]
[1727197672187,3.3998,147.08,147.04,3.4005]
[1727197672482,3.31824986,147.09,147.04,3.4005]
[1727197672888,4.1145,147.1,147.03,14.71]
[1727197673289,3.4626694,147.19,147.05,14.71]
[1727197673486,14.71,147.17,147.07,14.71]
[1727197673697,1.03582982,147.16,147.07,14.71]
[1727197673887,18.8776,147.18,147.07,14.71]
[1727197673888,1.03582982,147.15,147.07,14.71]
[1727197674089,1.03582982,147.14,147.07,14.71]
[1727197674296,1.03582982,147.13,147.07,14.71]
[1727197674502,3.3984,147.14,147.09,3.3992]
[1727197676293,18.1078,147.16,147.07,14.71]
[1727197676690,1.03544222,147.15,147.07,14.71]
[1727197677389,1.03544222,147.15,147.11,3.3987]
[1727197677595,4.43344222,147.15,147.07,14.71]
[1727197677796,1.03544222,147.14,147.07,14.71]
[1727197677996,1.03544222,147.14,147.1,3.3991]
[1727197678299,1.03544222,147.14,147.07,14.71]
[1727197678492,3.398,147.15,147.1,3.3991]
[1727197678685,1.03544313,147.14,147.1,3.3991]
[1727197678889,4.43364313,147.14,147.1,3.3991]
[1727197679195,3.3982,147.14,147.09,3.3993]
[1727197680496,18.19004322,147.14,147.08,3.3996]
[1727197680697,1.03551355,147.13,147.05,14.71]
[1727197680894,3.3218749,147.12,147.05,14.71]
[1727197681094,3.3992,147.1,147.06,3.4]
[1727197681987,2.7495,147.11,147.03,14.71]
[1727197682593,6.1486,147.11,147.03,14.71]
[1727197683003,6.1486,147.11,147.07,3.3999]
[1727197684401,2.7495,147.11,147.03,14.71]
[1727197684589,2.7495,147.11,147.0,60.11908423]
[1727197684590,15.7457197,147.1,147.0,60.11908423]
[1727197684797,1.0357197,147.09,147.0,74.82908423]
[1727197685194,15.7457197,147.09,147.0,74.82908423]
[1727197685401,1.0357197,147.08,147.0,60.11908423]
[1727197685604,3.4003,147.06,147.01,3.4011]
[1727197685901,1.0357197,147.05,146.98,96.33]
[1727197686109,4.4362197,147.05,147.0,3.4013]
[1727197686298,14.71,147.07,146.98,14.71]
[1727197686299,1.0357197,147.04,146.98,14.71]
[1727197686495,1.0357197,147.06,146.98,14.71]
[1727197686700,3.4007,147.04,147.0,3.4013]
[1727197687003,1.0357197,147.03,147.0,3.4013]
[1727197687301,1.03611494,147.02,147.0,3.4013]
[1727197687499,3.4007,147.04,147.0,3.4013]
[1727197687707,1.03611496,147.03,147.0,3.4013]
[1727197689093,4.43701496,147.03,146.99,3.4015]
[1727197689300,1.03611496,147.02,146.99,3.4015]
[1727197691002,1.03611496,147.02,146.99,14.71]
[1727197691306,14.71,147.08,146.99,14.71]
[1727197691496,3.4002,147.06,147.02,3.4008]
[1727197691701,1.03614415,147.05,146.99,14.71]
[1727197691910,1.03614415,147.04,146.99,14.71]
[1727197692110,14.71,147.08,146.99,14.71]
[1727197692111,1.03614415,147.03,146.99,14.71]
[1727197692424,1.03614415,147.02,146.99,14.71]
[1727197692710,3.4002,147.06,147.02,3.4008]
[1727197693301,14.71,147.08,146.99,14.71]
[1727197693507,1.0361055,147.07,146.99,14.71]
[1727197694303,4.4361055,147.07,147.03,3.4007]
[1727197694504,1.0361055,147.06,147.03,3.4007]
[1727197695208,14.71,147.08,147.05,3.4003]
[1727197695413,1.0361339,147.07,146.99,14.71]
[1727197696308,3.3998,147.08,147.01,14.71]
[1727197696509,17.482,147.1,147.01,14.71]
[1727197696714,1.03580154,147.09,147.01,14.71]
[1727197696903,20.8813,147.1,147.01,14.71]
[1727197697309,20.8813,147.1,147.05,3.4001]
[1727197697517,3.3994,147.09,147.01,14.71]
[1727197697812,17.482,147.1,147.01,14.71]
[1727197698003,1.03593081,147.09,147.03,3.4007]
[1727197698207,1.03593081,147.09,147.01,14.71]
[1727197698405,17.482,147.1,147.02,3.4008]
[1727197698603,1.03598445,147.09,147.01,14.71]
[1727197698809,3.4,147.07,147.01,14.71]
[1727197699410,3.3997,147.08,147.04,3.4004]
[1727197703107,3.3997,147.08,147.01,14.71]
[1727197703108,17.482,147.1,147.01,14.71]
[1727197703415,1.03598602,147.09,146.99,14.71]
[1727197703917,17.482,147.1,146.99,14.71]
[1727197704119,3.4002,147.06,147.02,3.4009]
[1727197705513,3.4003,147.05,147.01,3.4012]
[1727197705710,3.44368832,147.04,146.97,14.71]
[1727197705916,14.71,147.07,146.97,14.71]
[1727197706108,3.4006,147.04,147.0,3.4014]
[1727197706504,3.4004,147.05,147.01,3.4011]
[1727197706716,14.71,147.08,147.01,14.71]
[1727197706909,1.03603397,147.07,147.01,14.71]
[1727197707110,3.3998,147.08,147.03,3.4007]
[1727197707312,1.03602614,147.07,147.03,3.4007]
[1727197707507,1.03602614,147.07,147.01,14.71]
[1727197707508,17.482,147.1,147.01,14.71]
[1727197707708,1.0359265,147.09,147.03,3.4007]
[1727197708305,1.0359265,147.09,147.03,14.71]
[1727197708909,3.3996,147.09,147.05,3.4002]
[1727197710218,2.772,147.1,147.03,14.71]
[1727197710513,2.772,147.1,147.05,14.71]
[1727197711013,2.772,147.1,147.03,14.71]
[1727197711715,2.772,147.1,147.05,3.4001]
[1727197711918,2.772,147.1,147.03,14.71]
[1727197712418,2.772,147.1,147.04,3.4004]
[1727197712621,2.772,147.1,147.03,14.71]
[1727197712825,2.772,147.1,147.05,14.71]
[1727197713212,1.3366,147.1,147.05,14.71]
[1727197713817,4.7359,147.1,147.06,3.3999]
[1727197714928,3.3991,147.11,147.07,3.3996]
[1727197715121,1.0357178,147.1,147.05,14.71]
[1727197715321,1.0357178,147.09,147.08,14.71]
[1727197715525,1.3901,147.14,147.1,3.399]
[1727197715526,4.7886,147.14,147.1,3.399]
[1727197715715,1.03545202,147.13,147.08,14.71]
[1727197715922,15.74545202,147.13,147.04,14.71]
[1727197716123,1.03555306,147.12,147.04,14.71]
[1727197716314,1.03555306,147.12,147.0,60.1216619]
[1727197716522,1.03555306,147.12,147.02,14.71]
[1727197716823,14.71,147.11,147.02,14.71]
[1727197717139,1.03555306,147.1,147.0,74.8316619]
[1727197717316,3.3998,147.08,147.0,74.8316619]
[1727197717516,4.85033576,147.14,147.06,14.71]
[1727197717517,1.3901,147.14,147.06,14.71]
[1727197717723,4.43435844,147.13,147.09,3.3993]
[1727197717934,1.03575844,147.12,147.06,14.71]
[1727197718130,1.3901,147.14,147.06,14.71]
[1727197718420,1.0354646,147.13,147.1,3.3991]
[1727197719020,1.0354646,147.13,147.06,14.71]
[1727197719021,1.0354646,147.13,147.08,14.71]
[1727197719225,4.76422842,147.18,147.1,14.71]
[1727197719427,1.03520616,147.17,147.13,3.3983]
[1727197720421,4.43290616,147.17,147.13,3.3983]
[1727197720742,1.03520616,147.16,147.13,3.3983]
[1727197722335,1.03520616,147.16,147.03,10.28836896]
[1727197722631,1.03520616,147.16,147.08,14.71]
[1727197723021,1.03520616,147.16,147.11,3.3987]
[1727197723219,11.6549615,147.16,147.08,14.71]
[1727197723417,1.03538795,147.15,147.08,14.71]
[1727197724031,1.03538795,147.14,147.08,14.71]
[1727197724332,10.61975534,147.16,147.08,14.71]
[1727197724632,1.03539736,147.15,147.08,14.71]
[1727197724832,1.03539736,147.15,147.11,3.3989]
[1727197727539,10.61975534,147.16,147.11,3.3989]
[1727197727736,1.03536651,147.15,147.11,3.3989]
[1727197728135,1.0353665,147.14,147.11,3.3989]
[1727197728334,10.61975534,147.16,147.11,3.3989]
[1727197728534,1.03539853,147.15,147.11,3.3989]
[1727197728729,1.03539853,147.15,147.03,10.28836896]
[1727197728730,15.74539853,147.15,147.03,3.48686896]
[1727197728930,1.03539853,147.14,147.05,14.71]
[1727197729340,1.03539853,147.14,147.08,3.3995]
[1727197729341,11.65460328,147.14,147.08,3.3995]
[1727197729537,1.03539853,147.13,147.08,3.3995]
[1727197730434,1.03539853,147.13,147.05,14.71]
[1727197730435,1.03539853,147.12,147.06,3.4]
[1727197730738,3.42561971,147.11,147.06,3.4]
[1727197731131,14.71,147.13,147.06,3.4]
[1727197731331,1.3848,147.14,147.05,3.4002]
[1727197731332,14.71,147.11,147.05,3.4002]
[1727197731540,18.09718311,147.11,147.05,3.4002]
[1727197731743,1.03564911,147.1,147.05,3.4002]
[1727197732843,14.71,147.07,147.0,60.1216619]
[1727197733143,3.4005,147.05,147.0,60.1216619]
[1727197733435,14.71,147.07,147.0,60.1216619]
[1727197733939,14.71,147.07,147.03,3.4007]
[1727197734442,3.3997,147.08,147.03,3.4007]
[1727197734635,1.0359227,147.07,147.0,74.8316619]
[1727197735244,1.4181,147.09,147.0,74.8316619]
[1727197735740,4.43565294,147.08,147.0,74.8316619]
[1727197735945,3.3998,147.08,147.0,74.8316619]
[1727197736248,3.3998,147.08,147.03,3.4006]
[1727197736433,3.3998,147.08,147.0,74.8316619]
[1727197736846,3.3998,147.08,147.04,3.4004]
[1727197738348,4.8177,147.09,147.04,3.4004]
[1727197738549,1.03588975,147.08,147.0,74.8316619]
[1727197738752,1.4181,147.09,147.03,14.71]
[1727197739050,1.4181,147.09,147.06,3.4]
[1727197739451,3.3992,147.1,147.06,3.4]
[1727197740454,3.3992,147.1,147.03,14.71]
[1727197740455,3.399,147.11,147.03,14.71]
[1727197740659,1.4319,147.13,147.04,14.71]
[1727197740854,1.4319,147.13,147.06,14.71]
[1727197741059,1.03559973,147.12,147.06,14.71]
[1727197742158,4.8305,147.13,147.06,14.71]
[1727197742350,1.03559754,147.12,147.06,14.71]
[1727197742558,1.03559082,147.12,147.06,14.71]
[1727197742954,1.03559082,147.12,147.09,3.3993]
[1727197746467,1.03559645,147.11,147.09,3.3993]
[1727197746674,1.03559645,147.12,147.09,3.3993]
[1727197746865,1.0355963,147.11,147.09,3.3993]
[1727197747066,1.4319,147.13,147.06,14.71]
[1727197747265,1.03559627,147.12,147.06,14.71]
[1727197747668,1.03559627,147.12,147.08,3.3995]
[1727197747972,1.03559627,147.12,147.06,14.71]
[1727197748477,1.03559627,147.11,147.06,14.71]
[1727197748661,3.3979,147.16,147.08,14.71]
[1727197748974,1.03549802,147.15,147.08,14.71]
[1727197749176,1.03549802,147.14,147.08,14.71]
[1727197749384,1.03549802,147.13,147.08,14.71]
[1727197749584,1.3576,147.17,147.08,14.71]
[1727197749775,1.03528647,147.16,147.1,14.71]
[1727197749978,1.03528647,147.16,147.13,3.3983]
[1727197750273,1.3692,147.18,147.13,3.3983]
[1727197750475,1.03527122,147.17,147.13,3.3983]
[1727197750976,1.03526161,147.16,147.13,3.3983]
[1727197751164,3.3972,147.19,147.14,3.3981]
[1727197751477,1.03511351,147.18,147.14,3.3981]
[1727197752071,1.03511351,147.18,147.15,3.398]
[1727197752280,1.03510144,147.17,147.15,3.398]
[1727197752575,6.81627203,147.2,147.15,3.398]
[1727197752776,1.03509818,147.19,147.15,3.398]
[1727197754367,6.81627203,147.2,147.15,3.398]
[1727197754562,1.03505238,147.19,147.15,3.398]
[1727197756171,1.03505238,147.19,147.13,14.71]
[1727197756371,1.03505238,147.19,147.15,14.71]
[1727197756678,3.41937203,147.2,147.18,3.3972]
[1727197756877,2.6101,147.22,147.18,3.3972]
[1727197757078,1.03491994,147.21,147.18,3.3972]
[1727197757274,3.48439518,147.2,147.18,3.3972]
[1727197757680,9.39591762,147.33,147.15,14.71]
[1727197757980,1.03486688,147.22,147.15,14.71]
[1727197758371,1.03486688,147.22,147.19,3.397]
[1727197758568,3.38491591,147.23,147.15,14.71]
[1727197758877,4.43136464,147.22,147.17,3.3974]
[1727197759070,1.03486464,147.21,147.17,3.3974]
[1727197759275,3.3972,147.19,147.11,14.71]
[1727197760084,14.71,147.18,147.02,226.0]
[1727197760380,14.71,147.12,147.03,14.71]
[1727197760570,3.3993,147.1,147.03,14.71]
[1727197761174,3.3993,147.1,147.06,3.3999]
[1727197761876,3.3993,147.1,147.07,3.3998]
[1727197762077,14.71,147.12,147.03,14.71]
[1727197762277,17.379,147.14,147.05,14.71]
[1727197762781,17.379,147.14,147.08,3.3994]
[1727197762782,3.3987,147.13,147.08,3.3994]
[1727197763278,4.43423158,147.13,147.08,3.3994]
[1727197763867,3.3989,147.11,147.07,3.3998]
[1727197764277,15.74553158,147.13,147.03,14.71]
[1727197764485,1.03553158,147.13,147.09,14.71]
[1727197765475,1.03553158,147.13,147.11,3.3988]
[1727197766081,1.03553158,147.13,147.12,3.3987]
[1727197767782,1.03553158,147.13,147.11,3.3989]
[1727197767971,1.03553158,147.13,147.08,14.71]
[1727197768576,1.03553158,147.13,147.06,14.71]
[1727197768977,1.03548355,147.12,147.06,14.71]
[1727197769177,14.71,147.15,147.09,3.3994]
[1727197769386,1.03540799,147.14,147.09,3.3994]
[1727197769777,3.3985,147.13,147.09,3.3994]
[1727197769970,14.71,147.15,147.06,14.71]
[1727197770280,3.41222879,147.16,147.06,14.71]
[1727197770281,4.43370724,147.14,147.06,14.71]
[1727197770473,1.03537648,147.13,147.11,3.3989]
[1727197770675,18.02802203,147.16,147.11,3.3989]
[1727197770876,4.43357799,147.15,147.11,3.3989]
[1727197771077,1.03537799,147.14,147.12,3.3987]
[1727197771282,1.03537799,147.13,147.09,14.71]
[1727197771583,3.3976,147.17,147.09,14.71]
[1727197771784,1.03526144,147.16,147.09,14.71]
[1727197771978,4.43306144,147.16,147.09,14.71]
[1727197772279,1.03526144,147.15,147.09,14.71]
[1727197772586,1.03526144,147.15,147.11,3.3988]
[1727197773182,1.03526144,147.15,147.12,3.3985]
[1727197773682,1.03526144,147.14,147.12,3.3985]
[1727197773983,18.1075,147.18,147.13,3.3983]
[1727197774179,1.03527648,147.17,147.13,3.3983]
[1727197774391,11.65713272,147.17,147.13,3.3983]
[1727197774594,1.03524533,147.16,147.13,3.3983]
[1727197775086,3.3976,147.17,147.13,3.3983]
[1727197775286,1.03523214,147.16,147.13,3.3983]
[1727197775689,4.43303214,147.16,147.12,3.3986]
[1727197775990,1.03523214,147.15,147.12,3.3986]
[1727197776187,1.03523214,147.15,147.09,14.71]
[1727197776384,1.03523214,147.14,147.11,3.3988]
[1727197778085,14.71,147.12,147.01,88.4022]
[1727197778387,14.71,147.12,147.03,14.71]
[1727197778388,1.03552658,147.11,147.03,14.71]
[1727197778582,3.3991,147.11,147.07,3.3997]
[1727197778892,14.71,147.12,147.03,14.71]
[1727197779097,1.03562191,147.11,147.03,14.71]
[1727197779282,1.03562191,147.11,147.06,3.3999]
[1727197779593,14.71,147.1,147.01,14.71]
[1727197779894,3.3998,147.08,147.04,3.4004]
[1727197780089,3.3998,147.08,147.01,14.71]
[1727197780393,3.3995,147.09,147.05,3.4001]
[1727197781188,14.71,147.1,147.01,14.71]
[1727197781488,17.4708,147.13,147.0,74.8316619]
[1727197781697,1.03561235,147.12,147.05,14.71]
[1727197782187,1.03561235,147.12,147.09,3.3992]
[1727197782789,1.03553323,147.11,147.09,3.3992]
[1727197783090,6.1594,147.13,147.09,3.3992]
[1727197783386,1.03553375,147.12,147.1,3.3992]
[1727197783586,2.7608,147.13,147.07,14.71]
[1727197783988,2.7608,147.13,147.05,14.71]
[1727197784486,13.39192653,147.13,147.05,14.71]
[1727197784885,2.7608,147.13,147.05,14.71]
[1727197785195,6.1594,147.13,147.05,14.71]
[1727197785896,6.1594,147.13,147.09,3.3993]
[1727197788891,1.03552595,147.12,147.09,3.3993]
[1727197789785,6.1594,147.13,147.09,3.3993]
[1727197793096,2.7608,147.13,147.05,14.71]
[1727197793299,3.399,147.11,147.07,3.3998]
[1727197793487,14.71,147.11,147.01,14.71]
[1727197794094,3.3997,147.08,147.01,14.71]
[1727197794396,14.71,147.09,147.0,60.1216619]
[1727197794700,3.3997,147.08,147.04,3.4004]
[1727197794894,14.71,147.09,147.0,60.1216619]
[1727197795095,14.71,147.11,147.01,14.71]
[1727197795803,3.3993,147.1,147.06,3.4]
[1727197796107,17.4708,147.13,147.03,14.71]
[1727197796300,4.43448052,147.12,147.08,3.3995]
[1727197796600,1.03568052,147.11,147.08,3.3995]
[1727197796797,3.3988,147.12,147.08,3.3995]
[1727197797000,3.3989,147.11,147.08,3.3995]
[1727197797896,2.7608,147.13,147.05,14.71]
[1727197798503,6.1594,147.13,147.09,3.3993]
[1727197799691,2.7608,147.13,147.05,14.71]
[1727197799897,2.7608,147.13,147.07,14.71]
[1727197800105,90.58471533,147.15,147.07,14.71]
[1727197800905,1.03540466,147.14,147.11,3.3988]
[1727197801207,90.58471533,147.15,147.12,3.3987]
[1727197801801,90.58471533,147.15,147.11,3.3988]
[1727197801995,90.58471533,147.15,147.07,18.10602748]
[1727197802503,14.71,147.2,147.12,14.71]
[1727197802807,1.03519581,147.19,147.12,14.71]
[1727197803913,1.03519581,147.19,147.15,3.398]
[1727197803914,4.43239581,147.19,147.15,3.398]
[1727197804208,1.03519581,147.18,147.15,3.398]
[1727197804604,1.03519581,147.18,147.01,226.0]
[1727197804605,14.71,147.16,147.01,226.0]
[1727197804906,14.71,147.16,147.06,14.71]
[1727197804907,18.05376062,147.16,147.06,14.71]
[1727197805204,14.71,147.16,147.08,14.71]
[1727197805906,14.71,147.21,147.1,14.71]
[1727197806112,1.03516023,147.2,147.1,14.71]
[1727197806611,14.71,147.18,147.07,14.71]
[1727197806800,1.03516023,147.17,147.07,18.15950697]
[1727197807000,3.3979,147.16,147.12,3.3986]
[1727197807706,14.71,147.2,147.07,18.15950697]
[1727197808009,3.3974,147.18,147.15,3.398]
[1727197808205,1.03519257,147.17,147.15,3.398]
[1727197808708,4.43289257,147.17,147.13,3.3984]
[1727197808910,1.03519257,147.16,147.13,3.3984]
[1727197809911,3.3977,147.17,147.13,3.3984]
[1727197810111,1.03519041,147.16,147.13,3.3984]
[1727197810307,3.3977,147.17,147.13,3.3984]
[1727197810508,1.03519037,147.16,147.14,3.3981]
[1727197810710,14.71,147.2,147.11,14.71]
[1727197810899,1.03512828,147.19,147.16,3.3977]
[1727197812112,4.43222828,147.19,147.15,3.3979]
[1727197812310,1.03512828,147.18,147.11,14.71]
[1727197812514,1.03512828,147.17,147.13,14.71]
[1727197812813,18.8056,147.22,147.13,14.71]
[1727197813018,1.03511412,147.21,147.13,14.71]
[1727197813415,17.5895913,147.21,147.17,3.3974]
[1727197813712,2.6763,147.22,147.15,14.71]
[1727197813917,1.03504427,147.21,147.15,14.71]
[1727197814718,1.03504427,147.21,147.13,14.71]
[1727197815105,1.03504427,147.21,147.11,14.71]
[1727197815309,14.71,147.19,147.11,14.71]
[1727197816416,3.3974,147.18,147.14,3.398]
[1727197817429,14.71,147.19,147.11,14.71]
[1727197817609,14.71,147.16,147.06,14.71]
[1727197818117,3.3981,147.15,147.11,3.3988]
[1727197818514,3.3978,147.16,147.12,3.3986]
[1727197818916,3.3978,147.16,147.08,14.71]
[1727197819419,3.3977,147.17,147.08,14.71]
[1727197819718,14.71,147.18,147.08,14.71]
[1727197819917,1.03522299,147.17,147.08,14.71]
[1727197820518,1.03522299,147.17,147.04,81.6]
[1727197820519,18.08720193,147.16,147.06,14.71]
[1727197820717,1.03522299,147.15,147.06,14.71]
[1727197821422,17.5523,147.16,147.08,14.71]
[1727197821928,16.1354,147.21,147.07,18.08754199]
[1727197822117,1.03524462,147.2,147.14,14.71]
[1727197822814,1.03509729,147.19,147.14,14.71]
[1727197823021,1.03509729,147.18,147.17,3.3974]
[1727197823213,3.3969,147.2,147.17,3.3974]
[1727197823614,1.4254,147.21,147.17,3.3974]
[1727197823615,4.8221,147.21,147.17,3.3974]
[1727197823824,1.03494353,147.2,147.17,3.3974]
[1727197825724,3.3967,147.21,147.17,3.3974]
[1727197826025,1.0349506,147.2,147.17,3.3974]
[1727197827413,2.7944,147.22,147.17,14.71]
[1727197827624,1.03485045,147.21,147.17,14.71]
[1727197828126,6.78121591,147.23,147.19,3.3969]
[1727197828318,1.03485144,147.22,147.19,3.3969]
[1727197829816,1.03485144,147.22,147.17,14.71]
[1727197830017,1.03484992,147.21,147.2,3.3968]
[1727197830217,1.03484992,147.22,147.2,3.3968]
[1727197830419,3.38491591,147.23,147.2,3.3968]
[1727197830420,1.03484992,147.21,147.2,3.3968]
[1727197830623,1.03484992,147.22,147.2,3.3968]
[1727197830817,1.03484992,147.21,147.2,3.3968]
[1727197831019,1.03484992,147.22,147.2,3.3968]
[1727197831327,3.38491591,147.23,147.2,3.3968]
[1727197831328,1.03484992,147.21,147.2,3.3968]
[1727197831519,1.03484992,147.22,147.2,3.3968]
[1727197831718,3.38491591,147.23,147.2,3.3968]
[1727197831719,1.03484992,147.21,147.2,3.3968]
[1727197832026,3.38491591,147.23,147.2,3.3968]
[1727197832217,1.03485052,147.22,147.2,3.3968]
[1727197832419,3.38491591,147.23,147.18,14.71]
[1727197832620,3.38491591,147.23,147.2,14.71]
[1727197832825,3.38491591,147.23,147.18,14.71]
[1727197834022,3.38491591,147.23,147.2,14.71]
[1727197834420,3.38491591,147.23,147.22,3.3964]
[1727197834826,3.38491591,147.23,147.2,14.71]
[1727197835618,1.03456964,147.22,147.2,14.71]
[1727197835930,1.03456964,147.22,147.21,3.3966]
[1727197836429,1.03456964,147.22,147.2,3.3968]
[1727197836624,1.03456964,147.22,147.16,14.71]
[1727197837027,1.03456964,147.22,147.14,14.71]
[1727197837628,1.03456964,147.22,147.17,3.3974]
[1727197837925,1.03468566,147.21,147.17,3.3974]
[1727197838128,1.03468566,147.2,147.17,3.3974]
[1727197838622,1.03468566,147.2,147.16,3.3977]
[1727197838623,4.43158566,147.2,147.16,3.3977]
[1727197838822,1.03468566,147.19,147.16,3.3977]
[1727197839536,1.03468566,147.19,147.17,3.3975]
[1727197839831,3.3967,147.21,147.17,3.3975]
[1727197840128,1.03470787,147.2,147.17,3.3975]
[1727197841732,1.03470787,147.2,147.07,81.56]
[1727197841938,1.03470787,147.2,147.11,14.71]
[1727197842321,3.3973,147.19,147.11,14.71]
[1727197842527,1.03470787,147.18,147.11,14.71]
[1727197842927,1.03470787,147.18,147.15,3.3979]
[1727197843132,4.43200787,147.18,147.15,3.3979]
[1727197843326,3.3973,147.18,147.15,3.3979]
[1727197843628,1.03488055,147.17,147.14,3.3982]
[1727197843825,14.71,147.2,147.14,3.3982]
[1727197844021,14.71,147.2,147.13,3.3984]
[1727197844227,3.39645057,147.19,147.13,3.3984]
[1727197844427,3.3978,147.16,147.09,78.26912804]
[1727197844729,18.09149122,147.16,147.07,96.27]
[1727197845325,3.3983,147.14,147.1,3.399]
[1727197845727,7.26617304,147.17,147.09,14.71]
[1727197845927,2.6323,147.17,147.11,14.71]
[1727197847036,6.03,147.17,147.13,3.3984]
[1727197847231,2.6323,147.17,147.13,3.3984]
[1727197847731,2.6323,147.17,147.11,14.71]
[1727197848932,3.3978,147.16,147.12,3.3986]
[1727197850231,6.0299,147.17,147.13,3.3985]
[1727197853932,14.71,147.21,147.13,14.71]
[1727197854134,1.0349923,147.2,147.13,14.71]
[1727197854446,3.3968,147.21,147.13,14.71]
[1727197854653,1.03488573,147.2,147.13,14.71]
[1727197854834,4.1663,147.22,147.15,14.71]
[1727197855339,7.5628,147.22,147.18,3.3972]
[1727197857127,3.3967,147.21,147.17,3.3975]
[1727197858028,4.1663,147.22,147.15,14.71]
[1727197858430,3.3968,147.21,147.17,3.3975]
[1727197858633,4.1663,147.22,147.17,3.3975]
[1727197858827,4.1663,147.22,147.15,14.71]
[1727197859230,3.3969,147.2,147.16,3.3977]
[1727197860032,3.3971,147.19,147.15,3.3978]
[1727197860337,1.03505063,147.18,147.06,96.29]
[1727197860641,14.71,147.16,147.06,96.29]
[1727197860850,3.3984,147.14,147.09,3.3992]
[1727197861045,3.3984,147.14,147.06,96.29]
[1727197861742,3.3985,147.13,147.06,96.29]
[1727197861938,3.3985,147.13,147.1,3.3992]
[1727197862331,3.3988,147.12,147.06,81.58]
[1727197862527,2.6987,147.15,147.09,3.3994]
[1727197862833,2.6987,147.15,147.06,81.58]
[1727197863445,3.3987,147.12,147.08,3.3995]
[1727197864142,3.3985,147.13,147.09,3.3993]
[1727197864534,3.3987,147.12,147.08,3.3995]
[1727197865538,14.71,147.13,147.05,14.71]
[1727197865840,17.4087,147.15,147.05,14.71]
[1727197866036,1.03545974,147.14,147.05,14.71]
[1727197866241,3.3987,147.13,147.09,3.3993]
[1727197866430,1.03545974,147.12,147.09,3.3993]
[1727197866635,17.4087,147.15,147.06,14.71]
[1727197866833,3.3988,147.12,147.08,3.3995]
[1727197867632,3.3989,147.12,147.07,3.3996]
[1727197867847,3.3989,147.12,147.06,14.71]
[1727197869243,14.71,147.13,147.02,6.99273834]
[1727197869449,14.71,147.11,147.02,14.71]
[1727197869752,3.3995,147.09,147.05,3.4002]
[1727197869945,14.71,147.11,147.05,3.4002]
[1727197870244,14.71,147.11,147.01,60.11356495]
[1727197870245,14.71,147.09,147.01,60.11356495]
[1727197870451,14.71,147.09,146.98,81.58]
[1727197870452,14.71,147.07,146.98,96.29]
[1727197870842,19.44344625,147.07,146.98,81.58]
[1727197871043,14.71,147.05,146.96,14.71]
[1727197871742,3.4008,147.03,147.0,3.4014]
[1727197871941,4.73344625,147.07,146.98,14.71]
[1727197872245,1.03594566,147.06,146.98,14.71]
[1727197872439,19.44344625,147.07,147.0,3.4014]
[1727197872643,1.03595928,147.06,147.0,3.4014]
[1727197873043,3.4006,147.04,147.0,3.4014]
[1727197873254,3.4006,147.04,146.96,14.71]
[1727197874053,3.4006,147.04,147.0,3.4014]